bitfinex/quotes_BTCUSD_20240729
["timestamp","ask_amount","ask_price","bid_price","bid_amount"]
[1722242573508,0.1269645,69619.0,69618.0,0.02221326]
[1722242573737,0.0136077,69619.0,69618.0,0.02221326]
[1722242573996,0.0120535,69619.0,69618.0,0.01096332]
[1722242574217,0.3567865,69619.0,69618.0,0.01096332]
[1722242574694,0.42531622,69619.0,69618.0,0.02196332]
[1722242574921,0.19549422,69619.0,69618.0,0.02196332]
[1722242575637,0.42531622,69619.0,69618.0,0.02196332]
[1722242576053,0.44786863,69619.0,69618.0,0.02196332]
[1722242576255,0.42431622,69619.0,69618.0,0.01096332]
[1722242576398,0.42531622,69619.0,69618.0,0.02096332]
[1722242576639,0.65513822,69619.0,69618.0,0.02096332]
[1722242576876,0.69989241,69619.0,69618.0,0.02096332]
[1722242577051,0.69889241,69619.0,69618.0,0.01096332]
[1722242577250,0.69889241,69619.0,69618.0,0.01496332]
[1722242577862,0.6990085,69619.0,69618.0,0.01496332]
[1722242578078,0.2393645,69619.0,69618.0,0.01496332]
[1722242578552,0.19457908,69619.0,69618.0,0.01496332]
[1722242578778,0.42440108,69619.0,69618.0,0.01496332]
[1722242579212,0.44695389,69619.0,69618.0,0.01496332]
[1722242579505,0.67677589,69619.0,69618.0,0.01496332]
[1722242579672,0.69913506,69619.0,69618.0,0.01496332]
[1722242580983,0.69920684,69619.0,69618.0,0.01496332]
[1722242581187,0.69920684,69619.0,69618.0,0.004]
[1722242581392,1.17663062,69619.0,69618.0,0.004]
[1722242581604,1.19811694,69619.0,69618.0,0.004]
[1722242581815,1.09082644,69619.0,69618.0,0.004]
[1722242582412,1.1058272,69619.0,69618.0,0.004]
[1722242583078,1.1283819,69619.0,69618.0,0.004]
[1722242583567,1.1058272,69619.0,69618.0,0.004]
[1722242583796,1.23462289,69619.0,69618.0,0.004]
[1722242584027,1.23470532,69619.0,69618.0,0.004]
[1722242584237,1.31590532,69619.0,69618.0,0.004]
[1722242584443,1.1870876,69619.0,69618.0,0.004]
[1722242586093,1.1870876,69619.0,69610.0,0.01188732]
[1722242586094,0.344772,69611.0,69610.0,0.01188732]
[1722242586306,0.229835,69616.0,69610.0,0.01188732]
[1722242586307,0.114919,69614.0,69611.0,0.01096332]
[1722242586509,0.114919,69614.0,69610.0,0.000924]
[1722242586510,0.0551739,69613.0,69612.0,0.08250687]
[1722242586712,0.114917,69616.0,69615.0,0.01096332]
[1722242586713,0.2437933,69616.0,69615.0,0.01096332]
[1722242586923,0.2313822,69618.0,69617.0,0.01096332]
[1722242586924,0.0015542,69618.0,69617.0,0.01096332]
[1722242587170,0.05671641,69618.0,69617.0,0.01096332]
[1722242587345,0.05671641,69618.0,69617.0,0.0222261]
[1722242587346,0.01049557,69618.0,69617.0,0.0222261]
[1722242587554,0.02234076,69619.0,69617.0,0.01096332]
[1722242587753,0.0553238,69618.0,69617.0,0.0222261]
[1722242587955,0.0553238,69618.0,69617.0,0.01096332]
[1722242588128,0.0553238,69618.0,69617.0,0.0222261]
[1722242588334,0.0553238,69618.0,69617.0,0.01096332]
[1722242588587,0.01049557,69618.0,69617.0,0.0222261]
[1722242588799,0.01049557,69618.0,69617.0,0.01096332]
[1722242589005,0.01049557,69618.0,69617.0,0.1371401]
[1722242589943,0.01097407,69618.0,69617.0,0.1371401]
[1722242590255,0.01097407,69618.0,69617.0,0.3669681]
[1722242590454,0.01097407,69618.0,69617.0,0.4420681]
[1722242590659,0.01097407,69618.0,69617.0,0.7361961]
[1722242591523,0.01097407,69618.0,69617.0,0.5063681]
[1722242592981,0.01584076,69619.0,69617.0,0.5063681]
[1722242593190,0.01110968,69618.0,69617.0,0.5063681]
[1722242593567,0.01584076,69619.0,69618.0,0.35570032]
[1722242593816,0.02708879,69619.0,69618.0,0.35570032]
[1722242594017,0.02708879,69619.0,69618.0,0.36695026]
[1722242594146,0.04963952,69619.0,69618.0,0.36695026]
[1722242594548,0.04963952,69619.0,69618.0,0.59677526]
[1722242595370,0.02708879,69619.0,69618.0,0.59677526]
[1722242595789,0.03808879,69619.0,69618.0,0.59777526]
[1722242595995,0.03808879,69619.0,69618.0,0.36795026]
[1722242596729,0.06124482,69619.0,69618.0,0.36795026]
[1722242596867,0.14723215,69619.0,69618.0,0.02321326]
[1722242597075,0.03298879,69619.0,69618.0,0.13812526]
[1722242597488,0.12975937,69619.0,69618.0,0.36795026]
[1722242597692,0.01124803,69619.0,69618.0,0.36695026]
[1722242598562,0.01124803,69619.0,69618.0,0.67827526]
[1722242598771,0.01124803,69619.0,69618.0,0.51285026]
[1722242599183,0.10751985,69621.0,69619.0,0.11491]
[1722242599389,0.0105377,69620.0,69619.0,0.11491]
[1722242600262,0.0105377,69620.0,69619.0,0.12587332]
[1722242600469,0.11805755,69620.0,69619.0,0.01096332]
[1722242601091,0.11805755,69620.0,69619.0,0.00996332]
[1722242601922,0.11905755,69620.0,69619.0,0.01896332]
[1722242602484,0.10852647,69620.0,69619.0,0.01896332]
[1722242602692,0.01153355,69620.0,69619.0,0.01896332]
[1722242602891,0.36379033,69620.0,69619.0,0.009]
[1722242603236,0.84685397,69620.0,69619.0,0.009]
[1722242603419,1.00984656,69620.0,69619.0,0.009]
[1722242604029,0.78002756,69620.0,69619.0,0.009]
[1722242604429,0.57457,69617.0,69616.0,0.00996332]
[1722242604633,0.73080864,69617.0,69616.0,0.00996332]
[1722242605188,0.50098064,69617.0,69616.0,0.00996332]
[1722242605411,0.05525178,69617.0,69616.0,0.00996332]
[1722242605635,0.1164642,69620.0,69619.0,0.00996332]
[1722242605839,0.63276662,69620.0,69619.0,0.00996332]
[1722242606037,0.114914,69617.0,69616.0,0.01196332]
[1722242606296,0.12617602,69617.0,69616.0,0.02323895]
[1722242606506,0.12617602,69617.0,69616.0,0.01196332]
[1722242606788,0.81090586,69617.0,69616.0,0.01196332]
[1722242607003,0.9849433,69617.0,69616.0,0.01196332]
[1722242607202,0.9849433,69617.0,69616.0,0.002]
[1722242607203,0.855916,69617.0,69616.0,0.002]
[1722242608214,0.98493066,69617.0,69616.0,0.002]
[1722242608415,0.344752,69615.0,69614.0,0.00996332]
[1722242608614,0.40102416,69615.0,69614.0,0.00996332]
[1722242608817,0.574587,69615.0,69614.0,0.00996332]
[1722242609060,0.63051547,69615.0,69614.0,0.00996332]
[1722242609549,0.63051547,69615.0,69614.0,0.01496332]
[1722242609738,0.75952363,69615.0,69614.0,0.01496332]
[1722242610318,0.75952363,69615.0,69614.0,0.005]
[1722242610319,0.88096558,69615.0,69614.0,0.005]
[1722242611109,0.75195742,69615.0,69614.0,0.005]
[1722242612073,0.69602895,69615.0,69614.0,0.005]
[1722242612212,0.52188132,69615.0,69614.0,0.005]
[1722242612583,0.18466535,69615.0,69614.0,0.01496332]
[1722242612698,0.063,69617.0,69616.0,0.00996332]
[1722242612699,0.177915,69617.0,69616.0,0.00996332]
[1722242612894,0.05581444,69617.0,69616.0,0.00996332]
[1722242613116,0.05581444,69617.0,69616.0,0.02123895]
[1722242613347,0.01082878,69617.0,69616.0,0.02123895]
[1722242613571,0.0015542,69619.0,69618.0,0.00996332]
[1722242613771,0.1255012,69621.0,69618.0,0.00996332]
[1722242613969,0.114908,69621.0,69620.0,0.00996332]
[1722242614178,0.17027002,69621.0,69620.0,0.00996332]
[1722242614369,0.40008502,69621.0,69620.0,0.00996332]
[1722242614569,0.55079514,69621.0,69620.0,0.00996332]
[1722242614804,0.4218102,69621.0,69620.0,0.00996332]
[1722242615008,0.56582194,69621.0,69620.0,0.00996332]
[1722242615255,0.56617142,69621.0,69620.0,0.00996332]
[1722242615453,0.43715913,69621.0,69620.0,0.00996332]
[1722242616670,0.1416,69619.0,69613.0,0.00996332]
[1722242616843,0.344742,69617.0,69616.0,0.00996332]
[1722242617003,0.75930477,69617.0,69616.0,0.00996332]
[1722242617202,0.344748,69616.0,69615.0,0.00996332]
[1722242617584,0.8611827,69616.0,69615.0,0.00996332]
[1722242617788,0.7593125,69616.0,69615.0,0.00996332]
[1722242618368,0.574587,69615.0,69614.0,0.00996332]
[1722242618519,0.58571523,69615.0,69614.0,0.00996332]
[1722242618708,0.63098829,69615.0,69614.0,0.00996332]
[1722242619200,0.574595,69614.0,69613.0,0.00996332]
[1722242619360,0.63099629,69614.0,69613.0,0.00996332]
[1722242620147,0.40115829,69614.0,69613.0,0.00996332]
[1722242620356,0.530169,69614.0,69613.0,0.00996332]
[1722242620561,0.114921,69613.0,69612.0,0.00996332]
[1722242620742,0.30032754,69613.0,69612.0,0.00996332]
[1722242620941,0.53016954,69613.0,69612.0,0.00996332]
[1722242621175,0.344767,69612.0,69611.0,0.00996332]
[1722242621377,0.45418524,69612.0,69611.0,0.00996332]
[1722242621780,0.62762895,69612.0,69611.0,0.00996332]
[1722242622008,0.68452657,69612.0,69611.0,0.00996332]
[1722242622417,0.68452729,69612.0,69611.0,0.00996332]
[1722242622639,0.40166534,69612.0,69611.0,0.00996332]
[1722242622834,0.28674334,69612.0,69611.0,0.00996332]
[1722242623003,0.63151334,69612.0,69611.0,0.00996332]
[1722242623211,0.344772,69611.0,69610.0,0.01088732]
[1722242623490,0.93741762,69611.0,69610.0,0.000924]
[1722242623690,0.77206962,69611.0,69610.0,0.000924]
[1722242623959,0.77206962,69611.0,69610.0,0.01088732]
[1722242624159,0.77206962,69611.0,69610.0,0.000924]
[1722242624363,0.77190741,69611.0,69610.0,0.000924]
[1722242624563,0.85020741,69611.0,69610.0,0.000924]
[1722242624965,0.85020755,69611.0,69610.0,0.000924]
[1722242625444,0.85120755,69611.0,69610.0,0.009924]
[1722242626674,0.79447128,69611.0,69610.0,0.009924]
[1722242626878,0.85149824,69611.0,69610.0,0.009924]
[1722242628178,0.54335024,69611.0,69610.0,0.009924]
[1722242628386,0.46732551,69611.0,69610.0,0.009924]
[1722242629366,0.17297751,69611.0,69610.0,0.01988732]
[1722242630358,0.18797827,69611.0,69610.0,0.01988732]
[1722242630847,0.07305427,69611.0,69610.0,0.01988732]
[1722242631568,0.07287339,69611.0,69610.0,0.01988732]
[1722242631770,0.07287339,69611.0,69610.0,0.03124004]
[1722242631905,0.07287339,69611.0,69610.0,0.10724004]
[1722242632111,0.0728691,69611.0,69610.0,0.10724004]
[1722242633182,0.33684639,69611.0,69610.0,0.03124004]
[1722242633396,0.27116786,69611.0,69610.0,0.03124004]
[1722242633564,0.27116786,69611.0,69610.0,0.01988732]
[1722242633883,0.73086386,69611.0,69610.0,0.009924]
[1722242634582,0.72986386,69611.0,69610.0,0.000924]
[1722242634786,0.72994417,69611.0,69610.0,0.000924]
[1722242636256,0.50109617,69611.0,69610.0,0.006924]
[1722242636492,0.48092141,69611.0,69610.0,0.006924]
[1722242636692,0.83864541,69611.0,69610.0,0.000924]
[1722242637023,0.83864248,69611.0,69610.0,0.000924]
[1722242637223,0.70976941,69611.0,69610.0,0.003924]
[1722242637345,0.82483766,69611.0,69610.0,0.003924]
[1722242637549,0.61754483,69611.0,69610.0,0.003924]
[1722242637790,0.61754483,69611.0,69610.0,0.000924]
[1722242637991,0.57373512,69611.0,69610.0,0.000924]
[1722242638191,0.61900117,69611.0,69610.0,0.000924]
[1722242639237,0.22485086,69611.0,69610.0,0.01088732]
[1722242640012,0.56962286,69611.0,69610.0,0.000924]
[1722242640217,0.56762286,69611.0,69610.0,0.02224004]
[1722242640413,0.20888492,69611.0,69610.0,0.01088732]
[1722242640617,0.25930741,69611.0,69610.0,0.01288732]
[1722242641114,0.14404722,69611.0,69610.0,0.01288732]
[1722242641322,0.25897122,69611.0,69610.0,0.01088732]
[1722242641730,0.25942971,69611.0,69610.0,0.01088732]
[1722242642858,0.26042971,69611.0,69610.0,0.01088732]
[1722242643064,0.49027771,69611.0,69610.0,0.01088732]
[1722242643260,0.26042971,69611.0,69610.0,0.01088732]
[1722242643626,0.2154108,69611.0,69610.0,0.01088732]
[1722242643783,0.26102605,69611.0,69610.0,0.01088732]
[1722242644223,0.26102582,69611.0,69610.0,0.01088732]
[1722242644522,0.14610182,69611.0,69610.0,0.01088732]
[1722242644718,0.09567933,69611.0,69610.0,0.07388732]
[1722242644925,0.22464664,69611.0,69610.0,0.08524004]
[1722242645147,0.09567933,69611.0,69610.0,0.16294004]
[1722242645889,0.09567933,69611.0,69610.0,0.27786604]
[1722242646282,0.09567933,69611.0,69610.0,0.16294004]
[1722242646687,0.09467933,69611.0,69610.0,0.16294004]
[1722242646918,0.03755593,69611.0,69610.0,0.28186604]
[1722242647123,0.09467839,69611.0,69610.0,0.28186604]
[1722242647511,0.07212322,69611.0,69610.0,0.27786604]
[1722242647714,0.07212322,69611.0,69610.0,0.28286604]
[1722242647922,0.07212322,69611.0,69610.0,0.51271804]
[1722242648328,0.07212322,69611.0,69610.0,0.28286604]
[1722242648786,0.07212322,69611.0,69610.0,0.51271804]
[1722242650175,0.01500076,69611.0,69610.0,0.51271804]
[1722242650641,0.07320568,69611.0,69610.0,0.51271804]
[1722242650845,0.09575927,69611.0,69610.0,0.51271804]
[1722242651218,0.09575927,69611.0,69610.0,0.52203536]
[1722242651955,0.07320568,69611.0,69610.0,0.29218336]
[1722242652921,0.07334624,69611.0,69610.0,0.29218336]
[1722242653571,0.07334624,69611.0,69610.0,0.52203536]
[1722242655048,0.07334624,69611.0,69610.0,0.75188736]
[1722242655252,0.04968865,69611.0,69610.0,0.75188736]
[1722242655455,0.02713518,69611.0,69610.0,0.75188736]
[1722242656720,0.13425229,69611.0,69610.0,0.97673936]
[1722242656922,0.13425229,69611.0,69610.0,1.02673936]
[1722242656923,0.02672736,69611.0,69610.0,1.02673936]
[1722242657126,0.02772736,69611.0,69610.0,1.03773936]
[1722242657323,0.02772736,69611.0,69610.0,0.98773936]
[1722242657748,0.02772736,69611.0,69610.0,0.97673936]
[1722242657749,0.02672736,69611.0,69610.0,0.97673936]
[1722242658120,0.02772736,69611.0,69610.0,0.98773936]
[1722242658332,0.02772736,69611.0,69610.0,0.75788736]
[1722242658734,0.05026642,69611.0,69610.0,0.75788736]
[1722242659221,0.02771412,69611.0,69610.0,0.75788736]
[1722242659853,0.01600076,69611.0,69610.0,0.75788736]
[1722242660054,0.02770555,69611.0,69610.0,0.75788736]
[1722242660416,0.01600076,69611.0,69610.0,0.75788736]
[1722242660634,0.02670556,69611.0,69610.0,0.74688736]
[1722242660808,0.02670556,69611.0,69610.0,0.68388736]
[1722242661007,0.02670556,69611.0,69610.0,0.45403536]
[1722242661223,0.02670556,69611.0,69610.0,0.22418336]
[1722242661593,0.02670556,69611.0,69610.0,0.14648336]
[1722242661981,0.04925837,69611.0,69610.0,0.14648336]
[1722242662426,0.04925837,69611.0,69610.0,0.37633536]
[1722242662601,0.04928531,69611.0,69610.0,0.37633536]
[1722242662953,0.0267325,69611.0,69610.0,0.37633536]
[1722242663404,0.0267325,69611.0,69610.0,0.13716604]
[1722242663609,0.04844389,69611.0,69610.0,0.13716604]
[1722242664567,0.02854616,69611.0,69610.0,0.15116604]
[1722242664792,0.02854616,69611.0,69610.0,0.38101804]
[1722242665193,0.02854616,69611.0,69610.0,0.52651804]
[1722242665569,0.02854616,69611.0,69610.0,0.75637004]
[1722242665981,0.02854616,69611.0,69610.0,0.02224004]
[1722242665982,0.02754616,69611.0,69610.0,0.02224004]
[1722242666182,0.1130026,69611.0,69610.0,0.02224004]
[1722242666387,0.19336167,69611.0,69610.0,0.02227672]
[1722242666591,0.90297001,69611.0,69610.0,0.03224004]
[1722242666955,0.90197001,69611.0,69610.0,0.01088732]
[1722242667310,0.90297001,69611.0,69610.0,0.02388732]
[1722242667495,0.67312201,69611.0,69610.0,0.02388732]
[1722242669010,0.67212201,69611.0,69610.0,0.01088732]
[1722242669200,0.81720703,69611.0,69610.0,0.01088732]
[1722242669408,1.04705503,69611.0,69610.0,0.000924]
[1722242669632,0.98943126,69611.0,69610.0,0.000924]
[1722242669763,1.07189088,69611.0,69610.0,0.000924]
[1722242670167,0.98942388,69611.0,69610.0,0.000924]
[1722242670370,1.04942,69611.0,69610.0,0.000924]
[1722242670804,1.05242,69611.0,69610.0,0.000924]
[1722242671402,0.90742516,69611.0,69610.0,0.000924]
[1722242672208,0.90771063,69611.0,69610.0,0.000924]
[1722242672960,0.907898,69611.0,69610.0,0.000924]
[1722242673383,1.05286598,69611.0,69610.0,0.000924]
[1722242673707,1.08427175,69611.0,69610.0,0.000924]
[1722242674082,0.85442375,69611.0,69610.0,0.000924]
[1722242674264,1.08427175,69611.0,69610.0,0.000924]
[1722242675074,1.08127175,69611.0,69610.0,0.000924]
[1722242675271,1.08427175,69611.0,69610.0,0.000924]
[1722242675687,1.08127175,69611.0,69610.0,0.000924]
[1722242676099,0.87583481,69611.0,69610.0,0.000924]
[1722242676302,1.08139307,69611.0,69610.0,0.000924]
[1722242676665,1.08439307,69611.0,69610.0,0.000924]
[1722242678550,0.93945074,69611.0,69610.0,0.000924]
[1722242679448,0.93946983,69611.0,69610.0,0.000924]
[1722242679648,0.93947024,69611.0,69610.0,0.000924]
[1722242680021,0.93946853,69611.0,69610.0,0.000924]
[1722242682561,0.62577186,69611.0,69610.0,0.000924]
[1722242682763,0.85566214,69611.0,69610.0,0.000924]
[1722242682968,0.62581414,69611.0,69610.0,0.000924]
[1722242683621,0.83010504,69611.0,69610.0,0.000924]
[1722242683821,0.60025704,69611.0,69610.0,0.000924]
[1722242684022,0.60225704,69611.0,69610.0,0.000924]
[1722242684598,0.60025704,69611.0,69610.0,0.000924]
[1722242686458,0.37040904,69611.0,69610.0,0.01088732]
[1722242686771,0.60025704,69611.0,69610.0,0.01088732]
[1722242686969,0.52126242,69611.0,69610.0,0.01088732]
[1722242687791,0.52326242,69611.0,69610.0,0.01088732]
[1722242688450,0.17649042,69611.0,69610.0,0.09428732]
[1722242688648,0.17749042,69611.0,69610.0,0.09428732]
[1722242688886,0.30639476,69611.0,69610.0,0.09428732]
[1722242689295,0.11681442,69611.0,69610.0,0.09428732]
[1722242689517,0.20465003,69611.0,69610.0,0.10564004]
[1722242689733,0.30465003,69611.0,69610.0,0.10564004]
[1722242689940,0.30464777,69611.0,69610.0,0.10864004]
[1722242690146,0.3272039,69611.0,69610.0,0.10864004]
[1722242690549,0.3272039,69611.0,69610.0,0.02524004]
[1722242690678,0.41830808,69611.0,69610.0,0.02524004]
[1722242690917,0.41830808,69611.0,69610.0,0.01388732]
[1722242691147,0.39575195,69611.0,69610.0,0.01388732]
[1722242691717,0.51067595,69611.0,69610.0,0.01388732]
[1722242691919,0.9805456,69611.0,69610.0,0.01527672]
[1722242692142,0.9805456,69611.0,69610.0,0.003924]
[1722242692562,0.98054674,69611.0,69610.0,0.000924]
[1722242693958,1.35540751,69611.0,69610.0,0.000924]
[1722242694381,1.21039474,69611.0,69610.0,0.000924]
[1722242694591,1.23295253,69611.0,69610.0,0.000924]
[1722242694814,1.68930721,69611.0,69610.0,0.000924]
[1722242695624,1.66674942,69611.0,69610.0,0.000924]
[1722242695866,1.56674942,69611.0,69610.0,0.000924]
[1722242697333,1.56774942,69611.0,69610.0,0.000924]
[1722242698120,1.66774942,69611.0,69610.0,0.000924]
[1722242698300,1.56774942,69611.0,69610.0,0.000924]
[1722242698510,1.66774942,69611.0,69610.0,0.000924]
[1722242698940,1.6914051,69611.0,69610.0,0.000924]
[1722242699199,1.66884589,69611.0,69610.0,0.000924]
[1722242699605,1.66884811,69611.0,69610.0,0.000924]
[1722242699877,1.56884811,69611.0,69610.0,0.000924]
[1722242700962,1.56784811,69611.0,69610.0,0.000924]
[1722242701148,1.66784811,69611.0,69610.0,0.000924]
[1722242701374,1.66784811,69611.0,69610.0,0.001924]
[1722242701375,1.68184811,69611.0,69610.0,0.001924]
[1722242701578,1.68158205,69611.0,69610.0,0.001924]
[1722242701723,1.66758205,69611.0,69610.0,0.000924]
[1722242701928,1.66762785,69611.0,69610.0,0.000924]
[1722242702131,1.68162785,69611.0,69610.0,0.001924]
[1722242702512,1.70418674,69611.0,69610.0,0.001924]
[1722242702689,1.70418674,69611.0,69610.0,0.000924]
[1722242702690,1.59018674,69611.0,69610.0,0.000924]
[1722242702898,1.69018674,69611.0,69610.0,0.000924]
[1722242703107,1.59018674,69611.0,69610.0,0.000924]
[1722242703747,1.22274317,69611.0,69610.0,0.000924]
[1722242703962,1.15027317,69611.0,69610.0,0.000924]
[1722242704399,0.52083151,69611.0,69610.0,0.01088732]
[1722242704605,0.52082381,69611.0,69610.0,0.01088732]
[1722242704895,0.53482381,69611.0,69610.0,0.01088732]
[1722242705293,0.52082381,69611.0,69610.0,0.01088732]
[1722242705798,0.53182381,69611.0,69610.0,0.01088732]
[1722242706647,0.62340332,69611.0,69610.0,0.01088732]
[1722242706939,0.85325132,69611.0,69610.0,0.000924]
[1722242707151,0.87580775,69611.0,69610.0,0.000924]
[1722242707390,0.87580775,69611.0,69610.0,0.01088732]
[1722242707595,0.86480775,69611.0,69610.0,0.01088732]
[1722242707942,0.86475549,69611.0,69610.0,0.01088732]
[1722242708146,1.05199674,69611.0,69610.0,0.01088732]
[1722242708361,0.90736607,69611.0,69610.0,0.01088732]
[1722242708572,1.05236171,69611.0,69610.0,0.01088732]
[1722242708975,1.05436171,69611.0,69610.0,0.01088732]
[1722242709481,0.90736607,69611.0,69610.0,0.01088732]
[1722242709687,0.91036607,69611.0,69610.0,0.01088732]
[1722242710212,0.91036607,69611.0,69610.0,0.000924]
[1722242710683,0.91036607,69611.0,69610.0,0.01088732]
[1722242710890,0.61571807,69611.0,69610.0,0.01088732]
[1722242711214,0.61572285,69611.0,69610.0,0.01088732]
[1722242711419,0.54670031,69611.0,69610.0,0.01088732]
[1722242711626,0.54669951,69611.0,69610.0,0.01088732]
[1722242711827,0.52414254,69611.0,69610.0,0.01088732]
[1722242712027,0.17937054,69611.0,69610.0,0.15168732]
[1722242712322,0.29429454,69611.0,69610.0,0.15168732]
[1722242712536,0.29129454,69611.0,69610.0,0.1592558]
[1722242712741,0.29129454,69611.0,69610.0,0.15168732]
[1722242713151,0.52114254,69611.0,69610.0,0.15168732]
[1722242713355,0.84621674,69611.0,69610.0,0.09068732]
[1722242713557,0.61636874,69611.0,69610.0,0.09068732]
[1722242714011,0.84621674,69611.0,69610.0,0.01088732]
[1722242714424,0.84539007,69611.0,69610.0,0.01088732]
[1722242714832,0.84339007,69611.0,69610.0,0.01088732]
[1722242715040,0.84439007,69611.0,69610.0,0.01088732]
[1722242715246,0.86694695,69611.0,69610.0,0.01088732]
[1722242715435,0.86594695,69611.0,69610.0,0.01088732]
[1722242715937,0.86894695,69611.0,69610.0,0.01088732]
[1722242717769,0.86889781,69611.0,69610.0,0.01088732]
[1722242718694,0.75311473,69611.0,69610.0,0.01088732]
[1722242720861,0.69343442,69611.0,69610.0,0.01088732]
[1722242721082,0.7535638,69611.0,69610.0,0.01088732]
[1722242721504,0.75348285,69611.0,69610.0,0.01088732]
[1722242721710,0.77603972,69611.0,69610.0,0.01088732]
[1722242722536,0.86672353,69611.0,69610.0,0.01088732]
[1722242722740,0.77603972,69611.0,69610.0,0.01088732]
[1722242724200,0.7759507,69611.0,69610.0,0.01088732]
[1722242724882,0.5461027,69611.0,69610.0,0.01088732]
[1722242725498,0.52354583,69611.0,69610.0,0.01088732]
[1722242725882,0.52054583,69611.0,69610.0,0.01088732]
[1722242726039,0.52354583,69611.0,69610.0,0.01088732]
[1722242726673,0.52354583,69611.0,69610.0,0.15558732]
[1722242726674,0.17877383,69611.0,69610.0,0.15558732]
[1722242726864,0.29369783,69611.0,69610.0,0.15558732]
[1722242727067,0.17877383,69611.0,69610.0,0.1631558]
[1722242727380,0.2465109,69611.0,69610.0,0.1631558]
[1722242727743,0.29029772,69611.0,69610.0,0.1631558]
[1722242727899,0.29129772,69611.0,69610.0,0.1631558]
[1722242728463,0.29029772,69611.0,69610.0,0.1631558]
[1722242728686,0.17637372,69611.0,69610.0,0.1631558]
[1722242728912,0.22785158,69611.0,69610.0,0.1631558]
[1722242729115,0.17637372,69611.0,69610.0,0.1631558]
[1722242729317,0.17537372,69611.0,69610.0,0.15558732]
[1722242729521,0.17537372,69611.0,69610.0,0.1631558]
[1722242730717,0.17503656,69611.0,69610.0,0.1631558]
[1722242730941,0.0284124,69611.0,69610.0,0.7166338]
[1722242731320,0.02911595,69611.0,69610.0,0.7166338]
[1722242731523,0.02911595,69611.0,69610.0,0.9464858]
[1722242731724,0.1150445,69611.0,69610.0,0.9464858]
[1722242731929,0.1150445,69611.0,69610.0,0.94459368]
[1722242732168,0.05166988,69611.0,69610.0,0.94459368]
[1722242732790,0.05266988,69611.0,69610.0,1.17444568]
[1722242733365,0.05266988,69611.0,69610.0,1.1763378]
[1722242733544,0.03011595,69611.0,69610.0,1.1763378]
[1722242733745,0.01681442,69611.0,69610.0,1.1763378]
[1722242733937,0.03010579,69611.0,69610.0,1.1763378]
[1722242735116,0.02910579,69611.0,69610.0,1.1763378]
[1722242736252,0.02910579,69611.0,69610.0,1.2263378]
[1722242736452,0.02912296,69611.0,69610.0,1.1763378]
[1722242736732,0.03012296,69611.0,69610.0,1.18144568]
[1722242737004,0.03767525,69611.0,69610.0,1.23144568]
[1722242737189,0.03792527,69611.0,69610.0,1.2333378]
[1722242737389,0.03692527,69611.0,69610.0,1.2263378]
[1722242738022,0.01437222,69611.0,69610.0,1.2263378]
[1722242738597,0.01437222,69611.0,69610.0,1.3263378]
[1722242738834,0.01537222,69611.0,69610.0,1.3333378]
[1722242739395,0.00181366,69611.0,69610.0,1.3333378]
[1722242741368,0.02436467,69611.0,69610.0,1.3333378]
[1722242741993,0.02436467,69611.0,69610.0,1.3353378]
[1722242742727,0.02336467,69611.0,69610.0,1.3283378]
[1722242742919,0.00181366,69611.0,69610.0,1.3353378]
[1722242745384,0.02436457,69611.0,69610.0,1.3353378]
[1722242745580,0.02436457,69611.0,69610.0,0.1701558]
[1722242745807,0.02436457,69611.0,69610.0,0.0254558]
[1722242745808,0.03876066,69611.0,69610.0,0.0254558]
[1722242746031,0.07419566,69611.0,69610.0,0.01788732]
[1722242746241,0.13304437,69611.0,69610.0,0.01788732]
[1722242746468,0.63811598,69611.0,69610.0,0.01788732]
[1722242746705,0.81150364,69611.0,69610.0,0.01788732]
[1722242746939,0.73712245,69611.0,69610.0,0.01088732]
[1722242747734,0.84667529,69611.0,69610.0,0.01088732]
[1722242747932,0.3208069,69611.0,69610.0,0.01088732]
[1722242748089,0.4357309,69611.0,69610.0,0.01088732]
[1722242748463,0.4367309,69611.0,69610.0,0.01588732]
[1722242748673,0.6665789,69611.0,69610.0,0.01588732]
[1722242748852,0.79206198,69611.0,69610.0,0.01588732]
[1722242749055,1.02190998,69611.0,69610.0,0.01588732]
[1722242749489,0.79206198,69611.0,69610.0,0.01588732]
[1722242749788,0.8146182,69611.0,69610.0,0.01588732]
[1722242749989,0.73422496,69611.0,69610.0,0.01088732]
[1722242750217,0.81372079,69611.0,69610.0,0.01088732]
[1722242750431,0.81472079,69611.0,69610.0,0.01588732]
[1722242750626,0.81492634,69611.0,69610.0,0.01588732]
[1722242751418,1.04477434,69611.0,69610.0,0.01588732]
[1722242752464,1.0597751,69611.0,69610.0,0.01588732]
[1722242752671,1.05974329,69611.0,69610.0,0.01588732]
[1722242753253,1.06015322,69611.0,69610.0,0.01588732]
[1722242753808,0.93467014,69611.0,69610.0,0.01588732]
[1722242754141,0.93467014,69611.0,69610.0,0.005924]
[1722242754142,1.18751814,69611.0,69610.0,0.005924]
[1722242754334,1.41402482,69611.0,69610.0,0.005924]
[1722242754506,1.78859602,69611.0,69610.0,0.005924]
[1722242754834,1.78697221,69611.0,69610.0,0.005924]
[1722242756479,1.70589271,69611.0,69610.0,0.000924]
[1722242756651,1.68562023,69611.0,69610.0,0.000924]
[1722242757444,1.69862023,69611.0,69610.0,0.001924]
[1722242757758,1.84326361,69611.0,69610.0,0.001924]
[1722242758009,1.67193812,69611.0,69610.0,0.000924]
[1722242758207,1.68593812,69611.0,69610.0,0.000924]
[1722242758543,1.83056118,69611.0,69610.0,0.000924]
[1722242759758,1.75083366,69611.0,69610.0,0.000924]
[1722242759935,1.83037814,69611.0,69610.0,0.000924]
[1722242760339,1.83036129,69611.0,69610.0,0.000924]
[1722242761153,1.93036129,69611.0,69610.0,0.000924]
[1722242761497,1.83036129,69611.0,69610.0,0.000924]
[1722242761714,1.68575516,69611.0,69610.0,0.000924]
[1722242761917,1.45610672,69611.0,69610.0,0.000924]
[1722242762121,1.41607004,69611.0,69610.0,0.000924]
[1722242762327,1.39947849,69611.0,69610.0,0.000924]
[1722242762528,1.45639924,69611.0,69610.0,0.000924]
[1722242762753,1.4389217,69611.0,69610.0,0.000924]
[1722242763158,1.2004782,69611.0,69610.0,0.000924]
[1722242763362,0.9706302,69611.0,69610.0,0.000924]
[1722242763716,1.09913118,69611.0,69610.0,0.000924]
[1722242763841,1.09913118,69611.0,69610.0,0.01088732]
[1722242763842,0.7930302,69611.0,69610.0,0.01088732]
[1722242764043,0.4631822,69611.0,69610.0,0.01088732]
[1722242764320,0.4771822,69611.0,69610.0,0.01088732]
[1722242764550,0.45462306,69611.0,69610.0,0.01088732]
[1722242764735,0.42370819,69611.0,69610.0,0.01088732]
[1722242765098,0.04656418,69611.0,69610.0,0.01088732]
[1722242765290,0.02281442,69611.0,69610.0,0.01088732]
[1722242765487,0.04644297,69611.0,69610.0,0.01088732]
[1722242765978,0.14644297,69611.0,69610.0,0.01088732]
[1722242766566,0.14644297,69611.0,69610.0,0.21298968]